[Event "*** Titled Tuesday Blitz"]
[Site "Chess.com"]
[Date "2019.08.06"]
[Round "5"]
[White "Airquake"]
[Black "area_5"]
[Result "0-1"]
[WhiteElo "2618"]
[BlackElo "2585"]
[TimeControl "180+2"]
[EndTime "14:04:55 PDT"]
[Termination "area_5 won on time"]

1. g3 {[%clk 0:03:01.9]} 1... d5 {[%clk 0:02:59.1]} 2. Bg2 {[%clk 0:03:03]} 2...
Nf6 {[%clk 0:02:59.6]} 3. Nf3 {[%clk 0:03:04.6]} 3... e6 {[%clk 0:02:57.8]} 4.
O-O {[%clk 0:03:06.1]} 4... Nc6 {[%clk 0:02:52.1]} 5. b3 {[%clk 0:03:07.3]} 5...
a5 {[%clk 0:02:49]} 6. a4 {[%clk 0:03:08.3]} 6... Be7 {[%clk 0:02:43.3]} 7. Bb2
{[%clk 0:03:07.2]} 7... O-O {[%clk 0:02:43.8]} 8. d3 {[%clk 0:03:08.9]} 8... Nb4
{[%clk 0:02:38.4]} 9. Nbd2 {[%clk 0:03:09.6]} 9... Bd7 {[%clk 0:02:28.3]} 10. c3
{[%clk 0:03:09.6]} 10... Na6 {[%clk 0:02:26.2]} 11. e4 {[%clk 0:03:10.5]} 11...
dxe4 {[%clk 0:02:12]} 12. dxe4 {[%clk 0:03:12.4]} 12... Bc6 {[%clk 0:02:03.8]}
13. Qe2 {[%clk 0:03:13.1]} 13... Qb8 {[%clk 0:01:51.5]} 14. Nd4 {[%clk
0:03:11.6]} 14... Bd7 {[%clk 0:01:44.4]} 15. e5 {[%clk 0:03:10.5]} 15... Nd5
{[%clk 0:01:41.2]} 16. Rad1 {[%clk 0:02:40.8]} 16... c6 {[%clk 0:01:15.4]} 17.
Nc4 {[%clk 0:02:28.4]} 17... Nc5 {[%clk 0:01:05.9]} 18. f4 {[%clk 0:01:58.7]}
18... b5 {[%clk 0:00:57.8]} 19. axb5 {[%clk 0:01:59.3]} 19... cxb5 {[%clk
0:00:58.9]} 20. Nd2 {[%clk 0:01:56.1]} 20... a4 {[%clk 0:00:43.3]} 21. b4 {[%clk
0:01:55.6]} 21... a3 {[%clk 0:00:42.5]} 22. Ba1 {[%clk 0:01:56.7]} 22... Na4
{[%clk 0:00:39.5]} 23. Nf5 {[%clk 0:01:55.3]} 23... exf5 {[%clk 0:00:32.9]} 24.
Bxd5 {[%clk 0:01:55.2]} 24... Ra6 {[%clk 0:00:34.3]} 25. Nb3 {[%clk 0:01:48]}
25... Bc6 {[%clk 0:00:18.6]} 26. Bxc6 {[%clk 0:01:37.9]} 26... Rxc6 {[%clk
0:00:19.1]} 27. Nd4 {[%clk 0:01:39.8]} 27... Nxc3 {[%clk 0:00:18.5]} 28. Qc2
{[%clk 0:01:40.8]} 28... Rc4 {[%clk 0:00:18.4]} 29. Bxc3 {[%clk 0:01:21.6]}
29... Bxb4 {[%clk 0:00:19.3]} 30. Bxb4 {[%clk 0:01:18.4]} 30... Rxc2 {[%clk
0:00:19.4]} 31. Nxc2 {[%clk 0:01:20.3]} 31... Qa7+ {[%clk 0:00:17.8]} 32. Kg2
{[%clk 0:01:14.8]} 32... Rc8 {[%clk 0:00:18]} 33. Nxa3 {[%clk 0:01:14.3]} 33...
Qa8+ {[%clk 0:00:18.1]} 34. Kh3 {[%clk 0:01:15.1]} 34... Qa4 {[%clk 0:00:18.7]}
35. Rd4 {[%clk 0:01:12.7]} 35... h6 {[%clk 0:00:18.8]} 36. Re1 {[%clk
0:01:06.1]} 36... Rc6 {[%clk 0:00:17.7]} 37. Re3 {[%clk 0:00:47.3]} 37... Kh7
{[%clk 0:00:15.9]} 38. g4 {[%clk 0:00:45]} 38... fxg4+ {[%clk 0:00:16]} 39. Kxg4
{[%clk 0:00:46.9]} 39... Qa8 {[%clk 0:00:16.8]} 40. f5 {[%clk 0:00:46.4]} 40...
Rc1 {[%clk 0:00:17.7]} 41. e6 {[%clk 0:00:40.7]} 41... Qg2+ {[%clk 0:00:18.5]}
42. Kf4 {[%clk 0:00:38.2]} 42... fxe6 {[%clk 0:00:19.1]} 43. fxe6 {[%clk
0:00:32.5]} 43... Rf1+ {[%clk 0:00:20]} 44. Ke5 {[%clk 0:00:27.4]} 44... Qg5+
{[%clk 0:00:20.8]} 45. Kd6 {[%clk 0:00:27.3]} 45... Qxe3 {[%clk 0:00:21.8]} 46.
Nxb5 {[%clk 0:00:28.9]} 46... Rf6 {[%clk 0:00:21.2]} 0-1

[Event "*** Titled Tuesday Blitz"]
[Site "Chess.com"]
[Date "2019.08.06"]
[Round "5"]
[White "Msb2"]
[Black "vladimirdamjanovic"]
[Result "1-0"]
[WhiteElo "2857"]
[BlackElo "2629"]
[TimeControl "180+2"]
[EndTime "14:04:56 PDT"]
[Termination "Msb2 won by resignation"]

1. d4 {[%clk 0:03:01.9]} 1... Nf6 {[%clk 0:03:00.7]} 2. c4 {[%clk 0:03:00.5]}
2... c5 {[%clk 0:03:01.7]} 3. d5 {[%clk 0:03:01.6]} 3... b5 {[%clk 0:03:02.9]}
4. cxb5 {[%clk 0:03:03.5]} 4... a6 {[%clk 0:03:04.3]} 5. bxa6 {[%clk 0:03:05.4]}
5... d6 {[%clk 0:03:05.9]} 6. Nc3 {[%clk 0:03:06.9]} 6... g6 {[%clk 0:03:07.3]}
7. e4 {[%clk 0:03:07.5]} 7... Bg7 {[%clk 0:03:08.6]} 8. Nf3 {[%clk 0:03:08.5]}
8... Qa5 {[%clk 0:03:09.4]} 9. Bb5+ {[%clk 0:03:01]} 9... Bd7 {[%clk 0:03:10.1]}
10. Bxd7+ {[%clk 0:03:01.1]} 10... Nbxd7 {[%clk 0:03:12]} 11. O-O {[%clk
0:03:02.2]} 11... O-O {[%clk 0:03:13]} 12. Qc2 {[%clk 0:02:55.8]} 12... Rfb8
{[%clk 0:03:12.5]} 13. Bd2 {[%clk 0:02:55]} 13... Qxa6 {[%clk 0:03:08.6]} 14. b3
{[%clk 0:02:51.4]} 14... Ne8 {[%clk 0:03:04]} 15. a4 {[%clk 0:02:45.9]} 15...
Nc7 {[%clk 0:03:01.1]} 16. Rab1 {[%clk 0:02:44.3]} 16... Rb7 {[%clk 0:03:00.1]}
17. Bg5 {[%clk 0:02:30.7]} 17... Kf8 {[%clk 0:02:57.3]} 18. Nd2 {[%clk
0:02:30.6]} 18... Ne5 {[%clk 0:02:45.8]} 19. Bf4 {[%clk 0:02:18.1]} 19... Qd3
{[%clk 0:02:40.9]} 20. Qc1 {[%clk 0:02:15.2]} 20... Rab8 {[%clk 0:02:17.7]} 21.
Nd1 {[%clk 0:01:38.1]} 21... Qe2 {[%clk 0:02:02.2]} 22. Nc3 {[%clk 0:01:22.7]}
22... Qa6 {[%clk 0:01:52.6]} 23. Bxe5 {[%clk 0:01:15.4]} 23... Bxe5 {[%clk
0:01:52.7]} 24. Nc4 {[%clk 0:01:17]} 24... Bg7 {[%clk 0:01:41.3]} 25. Qc2 {[%clk
0:01:16.7]} 25... Rb4 {[%clk 0:01:29.6]} 26. g3 {[%clk 0:01:03.8]} 26... h5
{[%clk 0:01:19.3]} 27. Kg2 {[%clk 0:01:04.3]} 27... Kg8 {[%clk 0:01:16.3]} 28.
f4 {[%clk 0:01:03.4]} 28... Qa8 {[%clk 0:01:17]} 29. Rfd1 {[%clk 0:00:59.2]}
29... f5 {[%clk 0:01:04.2]} 30. exf5 {[%clk 0:00:48.8]} 30... Bxc3 {[%clk
0:01:04.1]} 31. Qxc3 {[%clk 0:00:46.1]} 31... Nxd5 {[%clk 0:01:04.9]} 32. Qf3
{[%clk 0:00:41.3]} 32... Rxc4 {[%clk 0:00:50.7]} 33. Rxd5 {[%clk 0:00:18.3]}
33... Rc2+ {[%clk 0:00:31.1]} 34. Kh3 {[%clk 0:00:19.6]} 34... gxf5 {[%clk
0:00:21.6]} 35. Qd3 {[%clk 0:00:20.1]} 35... Rc3 {[%clk 0:00:19.1]} 36. Qxf5
{[%clk 0:00:20.4]} 36... e5 {[%clk 0:00:03.6]} 37. Qg6+ {[%clk 0:00:18.1]} 37...
Kf8 {[%clk 0:00:04.6]} 38. Qxd6+ {[%clk 0:00:19.3]} 38... Kg8 {[%clk 0:00:06.2]}
39. Qe6+ {[%clk 0:00:19.9]} 39... Kh8 {[%clk 0:00:06.8]} 40. Rxe5 {[%clk
0:00:19.1]} 40... Rb7 {[%clk 0:00:08.2]} 41. Rxh5+ {[%clk 0:00:17.4]} 41... Rh7
{[%clk 0:00:09.1]} 42. Qf6+ {[%clk 0:00:17.7]} 42... Kg8 {[%clk 0:00:10.7]} 43.
Rxh7 {[%clk 0:00:16.6]} 43... Qc8+ {[%clk 0:00:11.8]} 44. f5 {[%clk 0:00:17.4]}
44... Kxh7 {[%clk 0:00:12.1]} 45. Re1 {[%clk 0:00:17.6]} 1-0

[Event "*** Titled Tuesday Blitz"]
[Site "Chess.com"]
[Date "2019.08.06"]
[Round "5"]
[White "Blazinq"]
[Black "fm24601"]
[Result "1-0"]
[WhiteElo "2608"]
[BlackElo "2514"]
[TimeControl "180+2"]
[EndTime "14:04:56 PDT"]
[Termination "Blazinq won by checkmate"]

1. e4 {[%clk 0:03:01.9]} 1... e5 {[%clk 0:03:00.5]} 2. Nf3 {[%clk 0:03:03.2]}
2... Nc6 {[%clk 0:03:02]} 3. Bb5 {[%clk 0:03:04.9]} 3... a6 {[%clk 0:03:03.3]}
4. Ba4 {[%clk 0:03:06.6]} 4... Nf6 {[%clk 0:03:04.4]} 5. O-O {[%clk 0:03:08.1]}
5... Be7 {[%clk 0:03:05.9]} 6. Re1 {[%clk 0:03:09.6]} 6... b5 {[%clk 0:03:07.2]}
7. Bb3 {[%clk 0:03:11.2]} 7... d6 {[%clk 0:03:09.1]} 8. c3 {[%clk 0:03:12.6]}
8... O-O {[%clk 0:03:10.5]} 9. h3 {[%clk 0:03:14.3]} 9... Na5 {[%clk 0:03:12]}
10. Bc2 {[%clk 0:03:15.6]} 10... c5 {[%clk 0:03:13.6]} 11. d4 {[%clk 0:03:17.4]}
11... Qc7 {[%clk 0:03:15.1]} 12. a3 {[%clk 0:03:14.7]} 12... Nc6 {[%clk
0:03:14.9]} 13. d5 {[%clk 0:03:11.6]} 13... Nd8 {[%clk 0:03:14.5]} 14. Nbd2
{[%clk 0:03:11]} 14... Ne8 {[%clk 0:03:15.7]} 15. a4 {[%clk 0:02:53.7]} 15...
Rb8 {[%clk 0:03:16]} 16. axb5 {[%clk 0:02:54.1]} 16... axb5 {[%clk 0:03:17.9]}
17. Nf1 {[%clk 0:02:54.6]} 17... g6 {[%clk 0:03:19.1]} 18. Ng3 {[%clk 0:02:53]}
18... f6 {[%clk 0:03:19.8]} 19. h4 {[%clk 0:02:50.2]} 19... Ng7 {[%clk
0:03:19.4]} 20. Nh2 {[%clk 0:02:49.7]} 20... f5 {[%clk 0:03:12.5]} 21. exf5
{[%clk 0:02:47.6]} 21... Nxf5 {[%clk 0:02:45.3]} 22. Nxf5 {[%clk 0:02:37.2]}
22... Bxf5 {[%clk 0:02:47]} 23. h5 {[%clk 0:02:30.7]} 23... Bf6 {[%clk
0:02:15.6]} 24. hxg6 {[%clk 0:02:24.6]} 24... hxg6 {[%clk 0:02:06.5]} 25. Ng4
{[%clk 0:02:14.6]} 25... Bg7 {[%clk 0:01:46.5]} 26. Ne3 {[%clk 0:01:48.7]} 26...
e4 {[%clk 0:01:28.5]} 27. g4 {[%clk 0:01:39.4]} 27... Bc8 {[%clk 0:01:05.9]} 28.
Bxe4 {[%clk 0:01:38.6]} 28... Qf7 {[%clk 0:01:07.4]} 29. f3 {[%clk 0:01:31.8]}
29... Be5 {[%clk 0:00:57.5]} 30. Nf1 {[%clk 0:01:21.4]} 30... Bxg4 {[%clk
0:00:49.5]} 31. Bh6 {[%clk 0:01:14]} 31... Bh5 {[%clk 0:00:17.3]} 32. Bxf8
{[%clk 0:01:12.3]} 32... Qxf8 {[%clk 0:00:19.1]} 33. Qe2 {[%clk 0:01:11.9]}
33... Nf7 {[%clk 0:00:19.6]} 34. Qg2 {[%clk 0:01:13.3]} 34... Kg7 {[%clk
0:00:19.4]} 35. Ra7 {[%clk 0:01:14.2]} 35... Re8 {[%clk 0:00:19.9]} 36. Ng3
{[%clk 0:00:57]} 36... Bxg3 {[%clk 0:00:20.3]} 37. Qxg3 {[%clk 0:00:58.9]} 37...
Re5 {[%clk 0:00:19.1]} 38. Kf2 {[%clk 0:00:50.8]} 38... Qe8 {[%clk 0:00:12.1]}
39. Qf4 {[%clk 0:00:36.4]} 39... Kg8 {[%clk 0:00:09.7]} 40. Rg1 {[%clk
0:00:34.8]} 40... Nd8 {[%clk 0:00:03]} 41. Qf6 {[%clk 0:00:28.4]} 41... Rxe4
{[%clk 0:00:02.4]} 42. Qg7# {[%clk 0:00:28.9]} 1-0

[Event "*** Titled Tuesday Blitz"]
[Site "Chess.com"]
[Date "2019.08.06"]
[Round "5"]
[White "RoelandPruijssers"]
[Black "Walter_White_Poland"]
[Result "1-0"]
[WhiteElo "2486"]
[BlackElo "2330"]
[TimeControl "180+2"]
[EndTime "14:04:56 PDT"]
[Termination "RoelandPruijssers won on time"]

1. e4 {[%clk 0:02:52.8]} 1... e5 {[%clk 0:02:56.2]} 2. Nf3 {[%clk 0:02:52.2]}
2... Nc6 {[%clk 0:02:57.1]} 3. Bc4 {[%clk 0:02:53.4]} 3... Nf6 {[%clk
0:02:57.3]} 4. d3 {[%clk 0:02:54.4]} 4... d5 {[%clk 0:02:58.1]} 5. exd5 {[%clk
0:02:52.4]} 5... Nxd5 {[%clk 0:02:59.7]} 6. O-O {[%clk 0:02:53.8]} 6... Nb6
{[%clk 0:02:59.3]} 7. Bb3 {[%clk 0:02:49.8]} 7... Bg4 {[%clk 0:02:59.5]} 8. Re1
{[%clk 0:02:31]} 8... Qe7 {[%clk 0:02:59.1]} 9. c3 {[%clk 0:02:08.4]} 9... O-O-O
{[%clk 0:02:57.5]} 10. Be3 {[%clk 0:01:53]} 10... Nd5 {[%clk 0:02:04.1]} 11.
Nbd2 {[%clk 0:01:50.2]} 11... f6 {[%clk 0:02:00.4]} 12. Ba4 {[%clk 0:01:41]}
12... Nxe3 {[%clk 0:01:54]} 13. Rxe3 {[%clk 0:01:32.9]} 13... Qc5 {[%clk
0:01:52.5]} 14. Ne4 {[%clk 0:01:14.8]} 14... Qb6 {[%clk 0:01:47.1]} 15. h3
{[%clk 0:00:58.3]} 15... Bf5 {[%clk 0:01:45.9]} 16. b4 {[%clk 0:00:52]} 16...
Bxe4 {[%clk 0:01:40.3]} 17. Rxe4 {[%clk 0:00:52.5]} 17... f5 {[%clk 0:01:39.3]}
18. Rc4 {[%clk 0:00:40.7]} 18... e4 {[%clk 0:01:30.3]} 19. Bxc6 {[%clk
0:00:39.1]} 19... Rxd3 {[%clk 0:01:25]} 20. Qa4 {[%clk 0:00:22]} 20... exf3
{[%clk 0:01:11]} 21. Bxf3 {[%clk 0:00:20.7]} 21... Bd6 {[%clk 0:01:07.8]} 22.
Re1 {[%clk 0:00:21.5]} 22... Rd8 {[%clk 0:00:55.4]} 23. Qc2 {[%clk 0:00:11.6]}
23... Bg3 {[%clk 0:00:49.8]} 24. Kf1 {[%clk 0:00:06.2]} 24... Rd2 {[%clk
0:00:48.9]} 25. Qxf5+ {[%clk 0:00:06.4]} 25... Kb8 {[%clk 0:00:49.8]} 26. Be2
{[%clk 0:00:07.5]} 26... R2d6 {[%clk 0:00:19.2]} 27. Qc5 {[%clk 0:00:05.4]}
27... Rf6 {[%clk 0:00:17.6]} 28. Bf3 {[%clk 0:00:06.6]} 28... Qxc5 {[%clk
0:00:09.2]} 29. bxc5 {[%clk 0:00:07.3]} 29... Bf4 {[%clk 0:00:07.2]} 30. c6
{[%clk 0:00:06.6]} 30... b6 {[%clk 0:00:07.3]} 31. Rd4 {[%clk 0:00:04.2]} 31...
Bd6 {[%clk 0:00:04.2]} 32. Re2 {[%clk 0:00:04.4]} 32... a6 {[%clk 0:00:04]} 33.
Bg4 {[%clk 0:00:05.6]} 33... b5 {[%clk 0:00:04.5]} 34. Bd7 {[%clk 0:00:06.5]}
34... Ka7 {[%clk 0:00:05.1]} 35. g3 {[%clk 0:00:06.1]} 35... Kb6 {[%clk
0:00:03.1]} 36. Kg2 {[%clk 0:00:07.4]} 36... Bc5 {[%clk 0:00:02.9]} 37. Rd5
{[%clk 0:00:08.1]} 37... Rdf8 {[%clk 0:00:02.8]} 38. f4 {[%clk 0:00:09.1]} 38...
h6 {[%clk 0:00:03.1]} 39. h4 {[%clk 0:00:10.5]} 1-0

[Event "*** Titled Tuesday Blitz"]
[Site "Chess.com"]
[Date "2019.08.06"]
[Round "5"]
[White "biostatistician"]
[Black "medalja"]
[Result "1-0"]
[WhiteElo "2552"]
[BlackElo "2359"]
[TimeControl "180+2"]
[EndTime "14:05:09 PDT"]
[Termination "biostatistician won by resignation"]

1. d4 {[%clk 0:03:01.7]} 1... Nf6 {[%clk 0:03:00.2]} 2. Nf3 {[%clk 0:03:03.6]}
2... e6 {[%clk 0:03:00.1]} 3. c4 {[%clk 0:03:01]} 3... b6 {[%clk 0:03:00]} 4.
Nc3 {[%clk 0:03:02.2]} 4... Bb4 {[%clk 0:02:47.3]} 5. Qc2 {[%clk 0:03:03.3]}
5... Bb7 {[%clk 0:02:44.8]} 6. a3 {[%clk 0:03:04.2]} 6... Bxc3+ {[%clk
0:02:42.8]} 7. Qxc3 {[%clk 0:03:06.1]} 7... Ne4 {[%clk 0:02:43.6]} 8. Qc2 {[%clk
0:03:07.3]} 8... O-O {[%clk 0:02:44.7]} 9. g3 {[%clk 0:03:08.9]} 9... c5 {[%clk
0:02:40.6]} 10. Bg2 {[%clk 0:03:08.9]} 10... d5 {[%clk 0:02:39.8]} 11. O-O
{[%clk 0:03:10]} 11... Nd7 {[%clk 0:02:30.5]} 12. dxc5 {[%clk 0:03:00.5]} 12...
Rc8 {[%clk 0:02:02.5]} 13. cxd5 {[%clk 0:02:59.3]} 13... Bxd5 {[%clk 0:01:53.2]}
14. b4 {[%clk 0:02:54.8]} 14... bxc5 {[%clk 0:01:53.4]} 15. b5 {[%clk
0:02:56.3]} 15... c4 {[%clk 0:01:35.6]} 16. a4 {[%clk 0:02:56.7]} 16... Qf6
{[%clk 0:01:31.6]} 17. Ba3 {[%clk 0:02:49.6]} 17... Rfd8 {[%clk 0:01:05.3]} 18.
Rad1 {[%clk 0:02:50.6]} 18... Qc3 {[%clk 0:00:55.8]} 19. Qc1 {[%clk 0:02:23.3]}
19... Qb3 {[%clk 0:00:52.4]} 20. Nd4 {[%clk 0:02:09.7]} 20... Qxa4 {[%clk
0:00:50.3]} 21. Nc6 {[%clk 0:02:10.8]} 21... Re8 {[%clk 0:00:23.9]} 22. Ne7+
{[%clk 0:02:07.5]} 22... Rxe7 {[%clk 0:00:25.1]} 23. Bxe7 {[%clk 0:02:09.4]}
23... Qxb5 {[%clk 0:00:26.5]} 24. Qa3 {[%clk 0:01:40.7]} 24... a5 {[%clk
0:00:24.5]} 25. Rb1 {[%clk 0:01:40.8]} 25... Qa6 {[%clk 0:00:25.5]} 26. Rfd1
{[%clk 0:01:38.6]} 26... c3 {[%clk 0:00:25.4]} 27. Rbc1 {[%clk 0:01:25.6]} 27...
Qxe2 {[%clk 0:00:23.2]} 28. Rf1 {[%clk 0:01:18.1]} 28... Nd2 {[%clk 0:00:21.2]}
29. Rxc3 {[%clk 0:00:51.5]} 29... Re8 {[%clk 0:00:13.5]} 30. Re3 {[%clk
0:00:48.3]} 30... Qc4 {[%clk 0:00:06.4]} 31. Rc1 {[%clk 0:00:49.3]} 31... Qd4
{[%clk 0:00:05.2]} 32. Rd3 {[%clk 0:00:47.1]} 32... Qb4 {[%clk 0:00:03.8]} 33.
Qxb4 {[%clk 0:00:48]} 33... axb4 {[%clk 0:00:04.7]} 34. Rxd2 {[%clk 0:00:49.6]}
34... Rxe7 {[%clk 0:00:05.2]} 35. Rc8+ {[%clk 0:00:50.5]} 35... Nf8 {[%clk
0:00:06]} 36. Bxd5 {[%clk 0:00:52.1]} 36... exd5 {[%clk 0:00:07.5]} 37. Rxd5
{[%clk 0:00:54]} 37... f6 {[%clk 0:00:08.6]} 38. Rdd8 {[%clk 0:00:53.6]} 38...
Rf7 {[%clk 0:00:09.8]} 39. Rb8 {[%clk 0:00:55.1]} 39... g5 {[%clk 0:00:10.6]}
40. Rxb4 {[%clk 0:00:56.6]} 40... Kg7 {[%clk 0:00:12.3]} 41. Rdb8 {[%clk
0:00:57.8]} 41... Ng6 {[%clk 0:00:13.2]} 42. R8b7 {[%clk 0:00:58.6]} 42... h5
{[%clk 0:00:13.9]} 43. Kg2 {[%clk 0:01:00.1]} 43... Ne5 {[%clk 0:00:12.9]} 44.
h3 {[%clk 0:00:57.4]} 44... Kg6 {[%clk 0:00:12.8]} 45. Rxf7 {[%clk 0:00:57]}
45... Kxf7 {[%clk 0:00:14.7]} 46. Rb6 {[%clk 0:00:55.6]} 46... Kg6 {[%clk
0:00:15.2]} 47. Ra6 {[%clk 0:00:56.8]} 47... Kf5 {[%clk 0:00:16.3]} 48. Kf1
{[%clk 0:00:57.1]} 48... g4 {[%clk 0:00:13.8]} 49. h4 {[%clk 0:00:58.1]} 49...
Ke4 {[%clk 0:00:14.8]} 50. Rxf6 {[%clk 0:00:58.5]} 50... Nf3 {[%clk 0:00:15]}
51. Rf4+ {[%clk 0:00:58.8]} 51... Ke5 {[%clk 0:00:15.8]} 52. Ke2 {[%clk
0:00:58.4]} 52... Nd4+ {[%clk 0:00:16.2]} 53. Kd3 {[%clk 0:00:59.9]} 53... Nf3
{[%clk 0:00:16.8]} 54. Ke3 {[%clk 0:00:59.3]} 54... Ne1 {[%clk 0:00:17]} 55. Rc4
{[%clk 0:00:56.1]} 55... Ng2+ {[%clk 0:00:17.4]} 56. Ke2 {[%clk 0:00:56.1]}
56... Kf5 {[%clk 0:00:17.8]} 57. Kf1 {[%clk 0:00:56.9]} 1-0

[Event "*** Titled Tuesday Blitz"]
[Site "Chess.com"]
[Date "2019.08.06"]
[Round "5"]
[White "ArnaudovP"]
[Black "iturrizaga"]
[Result "0-1"]
[WhiteElo "2661"]
[BlackElo "2940"]
[TimeControl "180+2"]
[EndTime "14:05:10 PDT"]
[Termination "iturrizaga won by resignation"]

1. Nf3 {[%clk 0:03:01.9]} 1... b6 {[%clk 0:03:00.2]} 2. g3 {[%clk 0:03:01.6]}
2... Bb7 {[%clk 0:03:02.1]} 3. Bg2 {[%clk 0:03:03.2]} 3... g6 {[%clk 0:03:03.7]}
4. O-O {[%clk 0:03:04]} 4... Bg7 {[%clk 0:03:05.3]} 5. d4 {[%clk 0:03:05.5]}
5... Nf6 {[%clk 0:03:05.2]} 6. c4 {[%clk 0:03:04.4]} 6... O-O {[%clk 0:03:06]}
7. d5 {[%clk 0:03:04.7]} 7... e6 {[%clk 0:02:54.8]} 8. Nc3 {[%clk 0:03:05.1]}
8... exd5 {[%clk 0:02:55.9]} 9. cxd5 {[%clk 0:03:05.5]} 9... Re8 {[%clk
0:02:57.4]} 10. Nd4 {[%clk 0:03:01]} 10... c5 {[%clk 0:02:52.2]} 11. Ndb5 {[%clk
0:02:57.8]} 11... d6 {[%clk 0:02:52.1]} 12. Bf4 {[%clk 0:02:58.6]} 12... Bf8
{[%clk 0:02:52.1]} 13. a4 {[%clk 0:02:59.3]} 13... a6 {[%clk 0:02:51.3]} 14. Na3
{[%clk 0:02:59.6]} 14... Nh5 {[%clk 0:02:52.3]} 15. Bd2 {[%clk 0:02:53.3]} 15...
Nd7 {[%clk 0:02:52.4]} 16. Nc4 {[%clk 0:02:50]} 16... Qc7 {[%clk 0:02:52.5]} 17.
e4 {[%clk 0:02:45.9]} 17... Rab8 {[%clk 0:02:46.4]} 18. g4 {[%clk 0:02:45.7]}
18... Nhf6 {[%clk 0:02:41.3]} 19. Bf4 {[%clk 0:02:36.8]} 19... h5 {[%clk
0:02:29.5]} 20. h3 {[%clk 0:02:34.8]} 20... hxg4 {[%clk 0:02:22.6]} 21. hxg4
{[%clk 0:02:35.2]} 21... Bc8 {[%clk 0:02:21.2]} 22. g5 {[%clk 0:02:28.3]} 22...
Nh5 {[%clk 0:02:20.7]} 23. Bh2 {[%clk 0:02:29.4]} 23... Ne5 {[%clk 0:02:20.5]}
24. Ne3 {[%clk 0:02:13.8]} 24... c4 {[%clk 0:02:15.6]} 25. f4 {[%clk 0:02:04.9]}
25... Nd3 {[%clk 0:02:15.9]} 26. Bf3 {[%clk 0:02:03.3]} 26... Nhxf4 {[%clk
0:02:13.8]} 27. Bg4 {[%clk 0:02:00.6]} 27... Bxg4 {[%clk 0:01:48.7]} 28. Nxg4
{[%clk 0:02:00.4]} 28... Nh5 {[%clk 0:01:42.6]} 29. Qf3 {[%clk 0:01:48]} 29...
Bg7 {[%clk 0:01:41.8]} 30. Nf6+ {[%clk 0:01:44]} 30... Bxf6 {[%clk 0:01:27.3]}
31. gxf6 {[%clk 0:01:44.5]} 31... Kh7 {[%clk 0:01:13.6]} 32. Rad1 {[%clk
0:01:37]} 32... Rh8 {[%clk 0:01:10.8]} 33. Rd2 {[%clk 0:01:34.7]} 33... b5
{[%clk 0:01:08.5]} 34. axb5 {[%clk 0:01:34.6]} 34... axb5 {[%clk 0:01:10.4]} 35.
Rg2 {[%clk 0:01:34.8]} 35... Kg8 {[%clk 0:01:03.3]} 36. e5 {[%clk 0:01:20.5]}
36... Nxe5 {[%clk 0:00:59.1]} 37. Bxe5 {[%clk 0:01:19.9]} 37... dxe5 {[%clk
0:01:01]} 38. Qe4 {[%clk 0:01:10.2]} 38... Qb6+ {[%clk 0:00:51]} 39. Rff2 {[%clk
0:01:08.3]} 39... Nf4 {[%clk 0:00:43]} 40. d6 {[%clk 0:01:03.2]} 40... Nh3+
{[%clk 0:00:35.4]} 41. Kf1 {[%clk 0:01:02.9]} 41... Nxf2 {[%clk 0:00:36.7]} 42.
Rxf2 {[%clk 0:00:57.1]} 42... Qxd6 {[%clk 0:00:34.1]} 43. Nd5 {[%clk 0:00:57.9]}
43... Rd8 {[%clk 0:00:31.9]} 44. Rd2 {[%clk 0:00:58]} 44... Kf8 {[%clk
0:00:32.8]} 45. Rd1 {[%clk 0:00:52.2]} 45... Rh5 {[%clk 0:00:29.6]} 46. Kg1
{[%clk 0:00:52.3]} 46... Qc5+ {[%clk 0:00:28.4]} 47. Kg2 {[%clk 0:00:52.7]}
47... Qc6 {[%clk 0:00:23.1]} 48. Kg3 {[%clk 0:00:44.3]} 48... Rxd5 {[%clk
0:00:21.5]} 49. Rxd5 {[%clk 0:00:42.4]} 49... Qxf6 {[%clk 0:00:22.8]} 50. Rxb5
{[%clk 0:00:36.9]} 50... Rg5+ {[%clk 0:00:23.4]} 51. Kh3 {[%clk 0:00:37.2]}
51... Kg7 {[%clk 0:00:18.6]} 52. Rb7 {[%clk 0:00:29.3]} 52... Qf2 {[%clk
0:00:17.4]} 0-1